{"text_format":"1","workbook":"xlsx","n_sheets":2,"sheets":["Dati","TabStd"],"not_rendered":{"charts":0,"images":0,"macros":1,"external_links":0,"defined_names":4,"comments":0,"pivot_tables":0},"unopened":[],"bounds":{"document_bytes":16777216,"sheet_cells":100000,"rows_first":2000,"rows_last":500,"rows_between":2000,"halvings":0,"cell_chars":16384,"cell_head_chars":4096},"cells_cut":0,"cells_raw":0,"read":"whole","date_system":"1900"}

{"sheet":"Dati","index":0,"n_rows":15,"n_cols":11,"rows_kept":15,"cut":false,"hidden":false,"merged":[]}
[]
[]
[null,null,null,null,"Regione",null,"Provincia",null,"Comune",null,"CAP"]
[null,null,null,"Cod 1","Livello 1","Cod 2","Livello 2","Cod 3","Livello 3","Cod 4 ","Livello 4"]
[]
[null,null,null,{"$f":"OFFSET(INDIRECT(\"TabStd!B\"&MATCH($E$6,TabStd!B:B,0)),0,5)","v":"200"},"Lombardia",{"$f":"OFFSET(INDIRECT(\"TabStd!C\"&MATCH($G$6,TabStd!C:C,0)),0,5)","v":"506"},"Brescia",{"$f":"OFFSET(INDIRECT(\"TabStd!D\"&MATCH($I$6,TabStd!D:D,0)),0,5)","v":"621"},"Montichiari",{"$f":"OFFSET(INDIRECT(\"TabStd!E\"&MATCH($K$6,TabStd!E:E,0)),0,5)","v":"736"},"25018"]
[null,null,null,{"$f":"OFFSET(INDIRECT(\"TabStd!B\"&MATCH($E$7,TabStd!B:B,0)),0,5)","v":"100"},"Piemonte",{"$f":"OFFSET(INDIRECT(\"TabStd!C\"&MATCH($G$7,TabStd!C:C,0)),0,5)","v":"503"},"Asti",{"$f":"OFFSET(INDIRECT(\"TabStd!D\"&MATCH($I$7,TabStd!D:D,0)),0,5)","v":"615"},"Castellero",{"$f":"OFFSET(INDIRECT(\"TabStd!E\"&MATCH($K$7,TabStd!E:E,0)),0,5)","v":"727"},"14013"]
[null,null,null,{"$f":"OFFSET(INDIRECT(\"TabStd!B\"&MATCH($E$8,TabStd!B:B,0)),0,5)","v":"200"},"Lombardia",{"$f":"OFFSET(INDIRECT(\"TabStd!C\"&MATCH($G$8,TabStd!C:C,0)),0,5)","v":"506"},"Brescia",{"$f":"OFFSET(INDIRECT(\"TabStd!D\"&MATCH($I$8,TabStd!D:D,0)),0,5)","v":"621"},"Montichiari",{"$f":"OFFSET(INDIRECT(\"TabStd!E\"&MATCH($K$8,TabStd!E:E,0)),0,5)","v":"736"},"25018"]
[null,null,null,{"$f":"OFFSET(INDIRECT(\"TabStd!B\"&MATCH($E$9,TabStd!B:B,0)),0,5)","v":"400"},"Lazio",{"$f":"OFFSET(INDIRECT(\"TabStd!C\"&MATCH($G$9,TabStd!C:C,0)),0,5)","v":"510"},"Roma",{"$f":"OFFSET(INDIRECT(\"TabStd!D\"&MATCH($I$9,TabStd!D:D,0)),0,5)","v":"628"},"Roma",{"$f":"OFFSET(INDIRECT(\"TabStd!E\"&MATCH($K$9,TabStd!E:E,0)),0,5)","v":"745"},"00122"]
[null,null,null,{"$f":"OFFSET(INDIRECT(\"TabStd!B\"&MATCH($E$10,TabStd!B:B,0)),0,5)","v":"200"},"Lombardia",{"$f":"OFFSET(INDIRECT(\"TabStd!C\"&MATCH($G$10,TabStd!C:C,0)),0,5)","v":"506"},"Brescia",{"$f":"OFFSET(INDIRECT(\"TabStd!D\"&MATCH($I$10,TabStd!D:D,0)),0,5)","v":"620"},"Brescia",{"$f":"OFFSET(INDIRECT(\"TabStd!E\"&MATCH($K$10,TabStd!E:E,0)),0,5)","v":"735"},"25135"]
[null,null,null,{"$f":"OFFSET(INDIRECT(\"TabStd!B\"&MATCH($E$11,TabStd!B:B,0)),0,5)","v":"100"},"Piemonte",{"$f":"OFFSET(INDIRECT(\"TabStd!C\"&MATCH($G$11,TabStd!C:C,0)),0,5)","v":"503"},"Asti",{"$f":"OFFSET(INDIRECT(\"TabStd!D\"&MATCH($I$11,TabStd!D:D,0)),0,5)","v":"614"},"Asti",{"$f":"OFFSET(INDIRECT(\"TabStd!E\"&MATCH($K$11,TabStd!E:E,0)),0,5)","v":"726"},"14100"]
[null,null,null,{"$f":"OFFSET(INDIRECT(\"TabStd!B\"&MATCH($E$12,TabStd!B:B,0)),0,5)","v":"100"},"Piemonte",{"$f":"OFFSET(INDIRECT(\"TabStd!C\"&MATCH($G$12,TabStd!C:C,0)),0,5)","v":"502"},"Alessandria",{"$f":"OFFSET(INDIRECT(\"TabStd!D\"&MATCH($I$12,TabStd!D:D,0)),0,5)","v":"612"},"Alessandria",{"$f":"OFFSET(INDIRECT(\"TabStd!E\"&MATCH($K$12,TabStd!E:E,0)),0,5)","v":"724"},"15122"]
[null,null,null,{"$f":"OFFSET(INDIRECT(\"TabStd!B\"&MATCH($E$13,TabStd!B:B,0)),0,5)","v":"200"},"Lombardia",{"$f":"OFFSET(INDIRECT(\"TabStd!C\"&MATCH($G$13,TabStd!C:C,0)),0,5)","v":"504"},"Milano",{"$f":"OFFSET(INDIRECT(\"TabStd!D\"&MATCH($I$13,TabStd!D:D,0)),0,5)","v":"616"},"Milano",{"$f":"OFFSET(INDIRECT(\"TabStd!E\"&MATCH($K$13,TabStd!E:E,0)),0,5)","v":"729"},"20160"]
[null,null,null,{"$f":"OFFSET(INDIRECT(\"TabStd!B\"&MATCH($E$14,TabStd!B:B,0)),0,5)","v":"400"},"Lazio",{"$f":"OFFSET(INDIRECT(\"TabStd!C\"&MATCH($G$14,TabStd!C:C,0)),0,5)","v":"512"},"Viterbo",{"$f":"OFFSET(INDIRECT(\"TabStd!D\"&MATCH($I$14,TabStd!D:D,0)),0,5)","v":"633"},"Canepina",{"$f":"OFFSET(INDIRECT(\"TabStd!E\"&MATCH($K$14,TabStd!E:E,0)),0,5)","v":"751"},"01030"]
[null,null,null,{"$f":"OFFSET(INDIRECT(\"TabStd!B\"&MATCH($E$15,TabStd!B:B,0)),0,5)","v":"200"},"Lombardia",{"$f":"OFFSET(INDIRECT(\"TabStd!C\"&MATCH($G$15,TabStd!C:C,0)),0,5)","v":"504"},"Milano",{"$f":"OFFSET(INDIRECT(\"TabStd!D\"&MATCH($I$15,TabStd!D:D,0)),0,5)","v":"616"},"Milano",{"$f":"OFFSET(INDIRECT(\"TabStd!E\"&MATCH($K$15,TabStd!E:E,0)),0,5)","v":"728"},"20121"]

{"sheet":"TabStd","index":1,"n_rows":52,"n_cols":10,"rows_kept":52,"cut":false,"hidden":false,"merged":[]}
[]
[null,null,"            Descrizioni",null,null,null,null,"Corrispondenza Codici"]
[]
[null,"Regione","Provincia","Comune","CAP"]
[null,"1° livello","2° livello","3° livello","4° liv.",null,"1° livello","2° livello","3° livello","4° liv."]
[null,"Piemonte","Torino","Torino","10121",null,"100","501","610","720"]
[null,null,null,null,"10150",null,null,null,null,"721"]
[null,null,null,"Pinerolo ","10064",null,null,null,"611","722"]
[]
[null,null,"Alessandria","Alessandria","15121",null,null,"502","612","723"]
[null,null,null,null,"15122",null,null,null,null,"724"]
[null,null,null,"Ovada","15076",null,null,null,"613","725"]
[]
[null,null,"Asti","Asti","14100",null,null,"503","614","726"]
[]
[null,null,null,"Castellero","14013",null,null,null,"615","727"]
[]
[null,"Lombardia","Milano","Milano","20121",null,"200","504","616","728"]
[null,null,null,null,"20160",null,null,null,null,"729"]
[null,null,null,"Lainate","20045",null,null,null,"617","730"]
[]
[null,null,"Bergamo","Bergamo","24121",null,null,"505","618","731"]
[null,null,null,null,"24125",null,null,null,null,"732"]
[null,null,null,"Seriate","24068",null,null,null,"619","733"]
[]
[null,null,"Brescia","Brescia","25121",null,null,"506","620","734"]
[null,null,null,null,"25135",null,null,null,null,"735"]
[null,null,null,"Montichiari","25018",null,null,null,"621","736"]
[]
[null,"Toscana","Firenze","Firenze","50121",null,"300","507","622","737"]
[null,null,null,null,"50144",null,null,null,null,"738"]
[null,null,null,"Fiesole","50014",null,null,null,"623","739"]
[]
[null,null,"Arezzo","Cortona","52044",null,null,"508","624","740"]
[]
[null,null,null,"Buccine","52021",null,null,null,"625","741"]
[]
[null,null,"Siena","Chiusi","53043",null,null,"509","626","742"]
[null,null,null,null,null,null,null,null,null,"743"]
[null,null,null,"Pienza","53026",null,null,null,"627","744"]
[]
[null,"Lazio","Roma","Roma","00122",null,"400","510","628","745"]
[null,null,null,null,"00118",null,null,null,null,"746"]
[null,null,null,"Capena","00060",null,null,null,"629","747"]
[]
[null,null,"Rieti","Amatrice","02012",null,null,"511","630","748"]
[]
[null,null,null,"Borgorose","02021",null,null,null,"631","749"]
[]
[null,null,"Viterbo","Bolsena","01023",null,null,"512","632","750"]
[]
[null,null,null,"Canepina","01030",null,null,null,"633","751"]